[Event "Late-Titled-Tuesday-Blitz-June-18-2024"]
[Site "Chess.com"]
[Date "2024.06.18"]
[Round "6"]
[White "ACollins05"]
[Black "carokannlover213"]
[Result "0-1"]
[WhiteElo "2411"]
[BlackElo "2665"]
[TimeControl "180+1"]
[EndTime "15:08:04 PDT"]
[Termination "carokannlover213 won by resignation"]

1. Nf3 {[%clk 0:03:00.9]} 1... Nf6 {[%clk 0:02:55.7]} 2. e3 {[%clk 0:03:00.8]}
2... b6 {[%clk 0:02:55.7]} 3. b3 {[%clk 0:03:00.7]} 3... Bb7 {[%clk 0:02:55.5]}
4. Bb2 {[%clk 0:03:01.3]} 4... a5 {[%clk 0:02:55.8]} 5. Be2 {[%clk 0:03:00.7]}
5... a4 {[%clk 0:02:55.6]} 6. O-O {[%clk 0:03:00.8]} 6... e6 {[%clk 0:02:54.4]}
7. bxa4 {[%clk 0:02:58.6]} 7... Rxa4 {[%clk 0:02:52.6]} 8. c4 {[%clk 0:02:58.1]}
8... Ra8 {[%clk 0:02:50.2]} 9. d3 {[%clk 0:02:56.8]} 9... Be7 {[%clk 0:02:49.3]}
10. Nbd2 {[%clk 0:02:55.9]} 10... O-O {[%clk 0:02:47.7]} 11. Ne5 {[%clk
0:02:55.7]} 11... d6 {[%clk 0:02:45.1]} 12. Bf3 {[%clk 0:02:55.7]} 12... c6
{[%clk 0:02:44.9]} 13. Ng4 {[%clk 0:02:54]} 13... Nxg4 {[%clk 0:02:45.3]} 14.
Bxg4 {[%clk 0:02:54.3]} 14... e5 {[%clk 0:02:46.2]} 15. d4 {[%clk 0:02:52.1]}
15... exd4 {[%clk 0:02:44.2]} 16. Bxd4 {[%clk 0:02:49.8]} 16... d5 {[%clk
0:02:42.1]} 17. cxd5 {[%clk 0:02:49.4]} 17... c5 {[%clk 0:02:40.2]} 18. Bb2
{[%clk 0:02:43.2]} 18... Bxd5 {[%clk 0:02:40.4]} 19. Bf3 {[%clk 0:02:43.3]}
19... Nc6 {[%clk 0:02:39.1]} 20. Bxd5 {[%clk 0:02:29.4]} 20... Qxd5 {[%clk
0:02:37.9]} 21. Nb3 {[%clk 0:02:26]} 21... Qe6 {[%clk 0:02:37.7]} 22. Qf3 {[%clk
0:02:21.6]} 22... Nb4 {[%clk 0:02:34.5]} 23. Qg3 {[%clk 0:02:15.8]} 23... f6
{[%clk 0:02:27.9]} 24. Nc1 {[%clk 0:02:08.6]} 24... Nxa2 {[%clk 0:02:22.7]} 25.
Nxa2 {[%clk 0:02:07.5]} 25... Rxa2 {[%clk 0:02:23.6]} 26. Rxa2 {[%clk
0:02:06.9]} 26... Qxa2 {[%clk 0:02:24.5]} 27. Qc7 {[%clk 0:02:06.1]} 27... Qxb2
{[%clk 0:02:15.4]} 28. Qxe7 {[%clk 0:02:05.9]} 28... Qe5 {[%clk 0:02:16.3]} 29.
Qb7 {[%clk 0:02:03.6]} 29... Rb8 {[%clk 0:02:12.6]} 30. Qc6 {[%clk 0:02:03.4]}
30... Qe8 {[%clk 0:02:07.5]} 31. Qd5+ {[%clk 0:02:02.3]} 31... Qf7 {[%clk
0:02:06.7]} 32. Qc6 {[%clk 0:02:02.4]} 32... Qb7 {[%clk 0:01:58.1]} 33. Qe6+
{[%clk 0:02:01.2]} 33... Kf8 {[%clk 0:01:51.6]} 34. Rd1 {[%clk 0:01:59.7]} 34...
Qe7 {[%clk 0:01:46.3]} 35. Qc6 {[%clk 0:01:57.7]} 35... Rd8 {[%clk 0:01:44.8]}
36. Ra1 {[%clk 0:01:51.5]} 36... Rd6 {[%clk 0:01:39.5]} 37. Qc8+ {[%clk
0:01:46.2]} 37... Kf7 {[%clk 0:01:35.1]} 38. g3 {[%clk 0:01:41.4]} 38... Qd7
{[%clk 0:01:30.4]} 39. Qb8 {[%clk 0:01:35.9]} 39... Rd1+ {[%clk 0:01:28.8]} 40.
Rxd1 {[%clk 0:01:35.4]} 40... Qxd1+ {[%clk 0:01:29.7]} 41. Kg2 {[%clk
0:01:36.2]} 41... Qd5+ {[%clk 0:01:30.6]} 42. Kg1 {[%clk 0:01:36.2]} 42... Qc6
{[%clk 0:01:29.5]} 43. Qa7+ {[%clk 0:01:36.1]} 43... Kg6 {[%clk 0:01:29.3]} 44.
h4 {[%clk 0:01:31.4]} 44... c4 {[%clk 0:01:27.8]} 45. h5+ {[%clk 0:01:30.1]}
45... Kh6 {[%clk 0:01:24.5]} 46. Qb8 {[%clk 0:01:26]} 46... Qe4 {[%clk
0:01:21.3]} 47. Qxb6 {[%clk 0:01:23.6]} 47... Kxh5 {[%clk 0:01:17.8]} 48. Qc5+
{[%clk 0:01:21.1]} 48... Kg4 {[%clk 0:01:14.8]} 49. Kf1 {[%clk 0:01:14.9]} 49...
g6 {[%clk 0:01:10.8]} 50. Ke2 {[%clk 0:01:09.1]} 50... Qd3+ {[%clk 0:01:07]} 51.
Ke1 {[%clk 0:01:06.9]} 51... c3 {[%clk 0:01:06.1]} 52. Qb4+ {[%clk 0:01:05.5]}
52... Kh3 {[%clk 0:01:04.6]} 53. g4 {[%clk 0:00:59.2]} 53... Kg2 {[%clk
0:00:59.4]} 54. Qb7+ {[%clk 0:00:54.2]} 54... Kg1 {[%clk 0:00:58]} 0-1

[Event "Late-Titled-Tuesday-Blitz-June-18-2024"]
[Site "Chess.com"]
[Date "2024.06.18"]
[Round "6"]
[White "marvinguevara"]
[Black "Connectedcloud"]
[Result "1-0"]
[WhiteElo "2165"]
[BlackElo "2328"]
[TimeControl "180+1"]
[EndTime "15:08:13 PDT"]
[Termination "marvinguevara won by resignation"]

1. e4 {[%clk 0:03:00.1]} 1... c5 {[%clk 0:03:00]} 2. Nf3 {[%clk 0:02:59.4]} 2...
d6 {[%clk 0:03:00.4]} 3. d4 {[%clk 0:02:58.7]} 3... cxd4 {[%clk 0:03:01.3]} 4.
c3 {[%clk 0:02:59.1]} 4... Nf6 {[%clk 0:02:57.6]} 5. Bd3 {[%clk 0:02:53.5]} 5...
dxc3 {[%clk 0:02:53.2]} 6. Nxc3 {[%clk 0:02:52.6]} 6... g6 {[%clk 0:02:53.7]} 7.
O-O {[%clk 0:02:50.8]} 7... Bg7 {[%clk 0:02:54.2]} 8. Qe2 {[%clk 0:02:44.5]}
8... O-O {[%clk 0:02:54]} 9. Rd1 {[%clk 0:02:43.9]} 9... Nbd7 {[%clk 0:02:25.2]}
10. Bg5 {[%clk 0:02:37.2]} 10... a6 {[%clk 0:02:23]} 11. Bxf6 {[%clk 0:02:36.1]}
11... Nxf6 {[%clk 0:02:18.4]} 12. e5 {[%clk 0:02:36.2]} 12... Ne8 {[%clk
0:02:12.6]} 13. exd6 {[%clk 0:02:33.9]} 13... Nxd6 {[%clk 0:02:12]} 14. Ne4
{[%clk 0:02:32.4]} 14... Bg4 {[%clk 0:01:55.9]} 15. h3 {[%clk 0:02:31]} 15...
Bc8 {[%clk 0:01:18.1]} 16. Bc2 {[%clk 0:02:22]} 16... Bxb2 {[%clk 0:01:08.4]}
17. Rab1 {[%clk 0:02:20.7]} 17... Bg7 {[%clk 0:01:08.1]} 18. Nxd6 {[%clk
0:02:19.9]} 18... exd6 {[%clk 0:01:07.7]} 19. Qd2 {[%clk 0:02:15.4]} 19... b5
{[%clk 0:01:03]} 20. Qb4 {[%clk 0:02:14.3]} 20... Be6 {[%clk 0:00:58.6]} 21.
Rxd6 {[%clk 0:02:13.6]} 21... Qc7 {[%clk 0:00:58.5]} 22. Be4 {[%clk 0:02:13.6]}
22... Ra7 {[%clk 0:00:49.4]} 23. Rbd1 {[%clk 0:02:12.1]} 23... Rb8 {[%clk
0:00:43]} 24. Ng5 {[%clk 0:02:11.4]} 24... Bf8 {[%clk 0:00:41.4]} 25. Nxe6
{[%clk 0:02:01.8]} 25... fxe6 {[%clk 0:00:41.2]} 26. Qb3 {[%clk 0:02:01.1]}
26... Bxd6 {[%clk 0:00:36.7]} 27. Qxe6+ {[%clk 0:01:59.7]} 27... Qf7 {[%clk
0:00:37]} 28. Qxd6 {[%clk 0:01:59.6]} 28... Qf8 {[%clk 0:00:18.2]} 29. Bd5+
{[%clk 0:01:52.4]} 29... Kh8 {[%clk 0:00:18.5]} 30. Qe5+ {[%clk 0:01:50.3]}
30... Rg7 {[%clk 0:00:19]} 31. Rc1 {[%clk 0:01:49.3]} 31... Re8 {[%clk
0:00:18.9]} 32. Qb2 {[%clk 0:01:47.1]} 32... Qf4 {[%clk 0:00:19]} 33. g3 {[%clk
0:01:38.3]} 33... Qd6 {[%clk 0:00:17]} 34. Bb3 {[%clk 0:01:30.6]} 34... Rf8
{[%clk 0:00:16.7]} 35. Rd1 {[%clk 0:01:29.6]} 35... Qe7 {[%clk 0:00:13.8]} 36.
h4 {[%clk 0:01:22.3]} 36... Qa7 {[%clk 0:00:14.3]} 37. h5 {[%clk 0:01:20.4]}
37... gxh5 {[%clk 0:00:14]} 38. Be6 {[%clk 0:01:18.4]} 38... h4 {[%clk
0:00:13.7]} 39. Rd7 {[%clk 0:01:17.2]} 39... Qxf2+ {[%clk 0:00:08.9]} 40. Qxf2
{[%clk 0:01:16.7]} 40... Rxg3+ {[%clk 0:00:09.4]} 41. Qxg3 {[%clk 0:01:15.3]}
41... hxg3 {[%clk 0:00:10.3]} 42. Kg2 {[%clk 0:01:15.5]} 42... h5 {[%clk
0:00:10.4]} 43. Kxg3 {[%clk 0:01:15.3]} 43... Rb8 {[%clk 0:00:10.8]} 44. Kh4
{[%clk 0:01:14.3]} 44... a5 {[%clk 0:00:11.5]} 45. Kxh5 {[%clk 0:01:14.2]} 45...
a4 {[%clk 0:00:10.9]} 46. Kg6 {[%clk 0:01:14.3]} 1-0

[Event "Late-Titled-Tuesday-Blitz-June-18-2024"]
[Site "Chess.com"]
[Date "2024.06.18"]
[Round "6"]
[White "Finejupiter"]
[Black "crazycheesecake"]
[Result "1-0"]
[WhiteElo "2031"]
[BlackElo "2102"]
[TimeControl "180+1"]
[EndTime "15:08:13 PDT"]
[Termination "Finejupiter won by checkmate"]

1. d4 {[%clk 0:02:59]} 1... d5 {[%clk 0:02:59.7]} 2. c4 {[%clk 0:02:59.2]} 2...
e6 {[%clk 0:02:59.2]} 3. Nc3 {[%clk 0:02:59.5]} 3... Nf6 {[%clk 0:02:59.5]} 4.
Nf3 {[%clk 0:03:00.1]} 4... Be7 {[%clk 0:02:59.6]} 5. e3 {[%clk 0:03:00.1]} 5...
O-O {[%clk 0:02:56.4]} 6. Bd3 {[%clk 0:02:59.8]} 6... b6 {[%clk 0:02:55.1]} 7.
O-O {[%clk 0:02:59.3]} 7... Bb7 {[%clk 0:02:49.8]} 8. Ne5 {[%clk 0:02:58.7]}
8... Nbd7 {[%clk 0:02:45.9]} 9. f4 {[%clk 0:02:54.7]} 9... dxc4 {[%clk
0:02:33.6]} 10. Bxc4 {[%clk 0:02:54.8]} 10... Nxe5 {[%clk 0:02:33.4]} 11. fxe5
{[%clk 0:02:54.9]} 11... Nd5 {[%clk 0:02:33.2]} 12. Bd3 {[%clk 0:02:53]} 12...
c5 {[%clk 0:02:31.4]} 13. Qh5 {[%clk 0:02:15.5]} 13... g6 {[%clk 0:02:28]} 14.
Qg4 {[%clk 0:02:15.3]} 14... Bg5 {[%clk 0:02:10.9]} 15. Kh1 {[%clk 0:02:07.8]}
15... Nxe3 {[%clk 0:02:05.7]} 16. Bxe3 {[%clk 0:02:06.5]} 16... Bxe3 {[%clk
0:02:06.6]} 17. Ne4 {[%clk 0:02:05.6]} 17... Bxe4 {[%clk 0:02:03.5]} 18. Bxe4
{[%clk 0:01:53.7]} 18... Qxd4 {[%clk 0:02:03]} 19. Rae1 {[%clk 0:01:52.9]} 19...
Bh6 {[%clk 0:01:59]} 20. Rf3 {[%clk 0:01:50.3]} 20... Bg7 {[%clk 0:01:49.3]} 21.
Rh3 {[%clk 0:01:49.4]} 21... Qxe5 {[%clk 0:01:48.5]} 22. Qh4 {[%clk 0:01:41.6]}
22... Qh5 {[%clk 0:01:40.5]} 23. Qxh5 {[%clk 0:01:35]} 23... gxh5 {[%clk
0:01:40.2]} 24. Rxh5 {[%clk 0:01:35.9]} 24... Bxb2 {[%clk 0:01:16.1]} 25. Re3
{[%clk 0:01:09.6]} 25... Rad8 {[%clk 0:00:21.1]} 26. Rg3+ {[%clk 0:01:03.6]}
26... Bg7 {[%clk 0:00:20.4]} 27. Bxh7+ {[%clk 0:01:04.1]} 27... Kh8 {[%clk
0:00:20.9]} 28. Bd3+ {[%clk 0:01:04.4]} 28... Kg8 {[%clk 0:00:20.8]} 29. Rh7
{[%clk 0:01:05]} 29... Rfe8 {[%clk 0:00:17.2]} 30. Rgxg7+ {[%clk 0:00:55.4]}
30... Kf8 {[%clk 0:00:17]} 31. Rxf7+ {[%clk 0:00:55.2]} 31... Kg8 {[%clk
0:00:17.5]} 32. Bf1 {[%clk 0:00:51.5]} 32... Rd1 {[%clk 0:00:15.4]} 33. Kg1
{[%clk 0:00:51.9]} 33... Rf8 {[%clk 0:00:11.9]} 34. Rfg7# {[%clk 0:00:51.8]} 1-0

[Event "Late-Titled-Tuesday-Blitz-June-18-2024"]
[Site "Chess.com"]
[Date "2024.06.18"]
[Round "6"]
[White "NajdorfPlayerc5"]
[Black "Dhaydon19"]
[Result "0-1"]
[WhiteElo "2444"]
[BlackElo "2654"]
[TimeControl "180+1"]
[EndTime "15:08:15 PDT"]
[Termination "Dhaydon19 won on time"]

1. e4 {[%clk 0:03:00.9]} 1... e6 {[%clk 0:03:00]} 2. d4 {[%clk 0:03:00.1]} 2...
d5 {[%clk 0:03:00.5]} 3. Nd2 {[%clk 0:02:58.7]} 3... dxe4 {[%clk 0:03:00.2]} 4.
Nxe4 {[%clk 0:02:58.4]} 4... Bd7 {[%clk 0:03:00.7]} 5. Nf3 {[%clk 0:02:53.5]}
5... Bc6 {[%clk 0:02:56]} 6. Bd3 {[%clk 0:02:52.8]} 6... Nd7 {[%clk 0:02:55.4]}
7. O-O {[%clk 0:02:41]} 7... h6 {[%clk 0:02:53]} 8. c3 {[%clk 0:02:37.1]} 8...
Ngf6 {[%clk 0:02:52.3]} 9. Nxf6+ {[%clk 0:02:37]} 9... gxf6 {[%clk 0:02:46.3]}
10. Qe2 {[%clk 0:02:33.3]} 10... Bd6 {[%clk 0:02:43.6]} 11. Be4 {[%clk
0:02:31.4]} 11... Bxe4 {[%clk 0:02:41.8]} 12. Qxe4 {[%clk 0:02:32.3]} 12... c6
{[%clk 0:02:41.8]} 13. Nh4 {[%clk 0:02:25.3]} 13... Qe7 {[%clk 0:02:34.2]} 14.
Bf4 {[%clk 0:02:21.6]} 14... O-O-O {[%clk 0:02:26.2]} 15. Bxd6 {[%clk
0:02:05.5]} 15... Qxd6 {[%clk 0:02:24.9]} 16. b4 {[%clk 0:02:04.9]} 16... f5
{[%clk 0:02:23.7]} 17. Qf3 {[%clk 0:02:01.1]} 17... Rdg8 {[%clk 0:02:22.7]} 18.
g3 {[%clk 0:01:58.7]} 18... Rg4 {[%clk 0:02:21.6]} 19. Ng2 {[%clk 0:01:55.1]}
19... h5 {[%clk 0:02:19.6]} 20. h3 {[%clk 0:01:49.5]} 20... Rg7 {[%clk
0:02:18.3]} 21. h4 {[%clk 0:01:49.9]} 21... Nf6 {[%clk 0:02:16.6]} 22. b5 {[%clk
0:01:45.5]} 22... Qd5 {[%clk 0:02:12.5]} 23. Qxd5 {[%clk 0:01:42.9]} 23... cxd5
{[%clk 0:02:12.3]} 24. c4 {[%clk 0:01:35.7]} 24... dxc4 {[%clk 0:02:10]} 25.
Rac1 {[%clk 0:01:34.9]} 25... Kb8 {[%clk 0:02:10.1]} 26. Rxc4 {[%clk 0:01:34.6]}
26... Nd5 {[%clk 0:02:09.8]} 27. Rfc1 {[%clk 0:01:32.1]} 27... f4 {[%clk
0:02:07.8]} 28. Kh2 {[%clk 0:01:28.6]} 28... fxg3+ {[%clk 0:02:07.5]} 29. fxg3
{[%clk 0:01:28.7]} 29... Rhg8 {[%clk 0:02:07.8]} 30. Ne1 {[%clk 0:00:44.4]}
30... Rxg3 {[%clk 0:02:04]} 31. Rc8+ {[%clk 0:00:44.2]} 31... Rxc8 {[%clk
0:02:03]} 32. Rxc8+ {[%clk 0:00:45.1]} 32... Kxc8 {[%clk 0:02:03.6]} 33. Kxg3
{[%clk 0:00:45.8]} 33... f6 {[%clk 0:01:54.9]} 34. Nd3 {[%clk 0:00:43.7]} 34...
b6 {[%clk 0:01:50.5]} 35. Kf3 {[%clk 0:00:30]} 35... Kd7 {[%clk 0:01:49.3]} 36.
Nf2 {[%clk 0:00:27]} 36... Ke7 {[%clk 0:01:42.8]} 37. Ne4 {[%clk 0:00:26.9]}
37... e5 {[%clk 0:01:34.8]} 38. dxe5 {[%clk 0:00:26]} 38... fxe5 {[%clk
0:01:35.4]} 39. Ng3 {[%clk 0:00:20.6]} 39... Nf6 {[%clk 0:01:33.1]} 40. Ke3
{[%clk 0:00:16.4]} 40... Ke6 {[%clk 0:01:32.8]} 41. Kd3 {[%clk 0:00:16.4]} 41...
Kd5 {[%clk 0:01:32]} 42. a4 {[%clk 0:00:15.2]} 42... e4+ {[%clk 0:01:31]} 43.
Ke3 {[%clk 0:00:14]} 43... Ke5 {[%clk 0:01:31.6]} 44. Ne2 {[%clk 0:00:09.6]}
44... Nd5+ {[%clk 0:01:30.9]} 45. Kf2 {[%clk 0:00:09]} 45... Nf4 {[%clk
0:01:27.6]} 46. Ng3 {[%clk 0:00:07.6]} 46... Kd4 {[%clk 0:01:27.5]} 47. Nf5+
{[%clk 0:00:08]} 47... Kd3 {[%clk 0:01:26.7]} 48. Kg3 {[%clk 0:00:03]} 48... e3
{[%clk 0:01:25.9]} 0-1

[Event "Late-Titled-Tuesday-Blitz-June-18-2024"]
[Site "Chess.com"]
[Date "2024.06.18"]
[Round "6"]
[White "picturesquecheck"]
[Black "ploxoi"]
[Result "1/2-1/2"]
[WhiteElo "2380"]
[BlackElo "2513"]
[TimeControl "180+1"]
[EndTime "15:08:17 PDT"]
[Termination "Game drawn by repetition"]

1. g3 {[%clk 0:03:00.9]} 1... d5 {[%clk 0:02:58.2]} 2. Bg2 {[%clk 0:03:00.5]}
2... Nf6 {[%clk 0:02:56.9]} 3. Nf3 {[%clk 0:03:01.4]} 3... e6 {[%clk 0:02:55.9]}
4. d4 {[%clk 0:03:00.3]} 4... Be7 {[%clk 0:02:55.3]} 5. O-O {[%clk 0:03:00.1]}
5... O-O {[%clk 0:02:53.8]} 6. c4 {[%clk 0:03:00.6]} 6... c6 {[%clk 0:02:50.9]}
7. b3 {[%clk 0:02:57.4]} 7... Nbd7 {[%clk 0:02:49.7]} 8. Nc3 {[%clk 0:02:56.6]}
8... b6 {[%clk 0:02:49.3]} 9. Re1 {[%clk 0:02:56.3]} 9... Bb7 {[%clk 0:02:48.9]}
10. Qc2 {[%clk 0:02:54.9]} 10... c5 {[%clk 0:02:48]} 11. cxd5 {[%clk 0:02:50.2]}
11... Nxd5 {[%clk 0:02:46.5]} 12. Nxd5 {[%clk 0:02:50]} 12... Bxd5 {[%clk
0:02:47.3]} 13. e4 {[%clk 0:02:50.1]} 13... Bb7 {[%clk 0:02:46.6]} 14. d5 {[%clk
0:02:37.2]} 14... exd5 {[%clk 0:02:44.1]} 15. exd5 {[%clk 0:02:38.1]} 15... Nf6
{[%clk 0:02:43.6]} 16. Bb2 {[%clk 0:02:22.7]} 16... Nxd5 {[%clk 0:02:39.9]} 17.
Rad1 {[%clk 0:02:20.7]} 17... Qc7 {[%clk 0:02:31.7]} 18. Qf5 {[%clk 0:01:37.6]}
18... Bf6 {[%clk 0:02:20.5]} 19. Ng5 {[%clk 0:01:30.9]} 19... g6 {[%clk
0:01:55.9]} 20. Qg4 {[%clk 0:00:53]} 20... Bxb2 {[%clk 0:01:47.2]} 21. Bxd5
{[%clk 0:00:51.8]} 21... Bxd5 {[%clk 0:01:43]} 22. Rxd5 {[%clk 0:00:52.7]} 22...
Bg7 {[%clk 0:01:41.2]} 23. Rd7 {[%clk 0:00:48.5]} 23... Qc6 {[%clk 0:01:40.7]}
24. Ree7 {[%clk 0:00:42.8]} 24... Rad8 {[%clk 0:00:41.8]} 25. Rxf7 {[%clk
0:00:36.9]} 25... Rxd7 {[%clk 0:00:37.2]} 26. Rxd7 {[%clk 0:00:37.8]} 26... Qf6
{[%clk 0:00:34.8]} 27. Qc4+ {[%clk 0:00:31.9]} 27... Kh8 {[%clk 0:00:31.8]} 28.
Nf7+ {[%clk 0:00:31.4]} 28... Kg8 {[%clk 0:00:26.2]} 29. Ng5+ {[%clk 0:00:20]}
29... Kh8 {[%clk 0:00:25.8]} 30. Nf7+ {[%clk 0:00:19.3]} 30... Kg8 {[%clk
0:00:25.5]} 31. Ng5+ {[%clk 0:00:14.7]} 1/2-1/2

[Event "Late-Titled-Tuesday-Blitz-June-18-2024"]
[Site "Chess.com"]
[Date "2024.06.18"]
[Round "6"]
[White "ozates"]
[Black "10n0l20"]
[Result "1-0"]
[WhiteElo "2637"]
[BlackElo "2475"]
[TimeControl "180+1"]
[EndTime "15:08:19 PDT"]
[Termination "ozates won by resignation"]

1. e4 {[%clk 0:02:52.3]} 1... e5 {[%clk 0:02:44.9]} 2. Nf3 {[%clk 0:02:50.1]}
2... Nc6 {[%clk 0:02:45.3]} 3. Bc4 {[%clk 0:02:50.4]} 3... Nf6 {[%clk
0:02:44.6]} 4. d3 {[%clk 0:02:49.8]} 4... h6 {[%clk 0:02:43.6]} 5. O-O {[%clk
0:02:46.9]} 5... d6 {[%clk 0:02:41.4]} 6. Nc3 {[%clk 0:02:43.5]} 6... g6 {[%clk
0:02:37.3]} 7. a4 {[%clk 0:02:43.1]} 7... Bg7 {[%clk 0:02:37.4]} 8. h3 {[%clk
0:02:41.2]} 8... O-O {[%clk 0:02:37.4]} 9. Be3 {[%clk 0:02:41.6]} 9... Ne7
{[%clk 0:02:36.8]} 10. Qd2 {[%clk 0:02:41.5]} 10... Kh7 {[%clk 0:02:36]} 11. d4
{[%clk 0:02:42]} 11... exd4 {[%clk 0:02:36.1]} 12. Bxd4 {[%clk 0:02:38.8]} 12...
Nc6 {[%clk 0:02:31.8]} 13. Be3 {[%clk 0:02:35.5]} 13... Be6 {[%clk 0:02:27]} 14.
Bd3 {[%clk 0:02:33.5]} 14... Nd7 {[%clk 0:02:25.2]} 15. Rab1 {[%clk 0:02:29.6]}
15... Nde5 {[%clk 0:02:25.1]} 16. Nxe5 {[%clk 0:02:28.6]} 16... dxe5 {[%clk
0:02:26]} 17. Nd5 {[%clk 0:02:25.9]} 17... Nd4 {[%clk 0:02:22.1]} 18. c3 {[%clk
0:02:23.8]} 18... Nc6 {[%clk 0:02:12.9]} 19. Qc2 {[%clk 0:02:19]} 19... Ne7
{[%clk 0:02:10.8]} 20. Bc5 {[%clk 0:02:06.3]} 20... Nxd5 {[%clk 0:01:57.3]} 21.
exd5 {[%clk 0:02:04.3]} 21... Qxd5 {[%clk 0:01:49.2]} 22. Bxf8 {[%clk
0:02:04.1]} 22... Rxf8 {[%clk 0:01:50.1]} 23. Be4 {[%clk 0:02:04.6]} 23... Qc5
{[%clk 0:01:43.6]} 24. Bxb7 {[%clk 0:02:01.3]} 24... c6 {[%clk 0:01:44.1]} 25.
Ba6 {[%clk 0:01:56.4]} 25... Bf5 {[%clk 0:01:31.4]} 26. Bd3 {[%clk 0:01:53.6]}
26... e4 {[%clk 0:01:31.2]} 27. Bxe4 {[%clk 0:01:52.4]} 27... Be6 {[%clk
0:01:29.2]} 28. Rfe1 {[%clk 0:01:48]} 28... Qc4 {[%clk 0:01:13.6]} 29. b3 {[%clk
0:01:42.1]} 29... Qxc3 {[%clk 0:01:00.6]} 30. Bxg6+ {[%clk 0:01:41.5]} 30... Kg8
{[%clk 0:00:53.7]} 31. Bh7+ {[%clk 0:01:40.4]} 31... Kh8 {[%clk 0:00:53.6]} 32.
Be4 {[%clk 0:01:37.3]} 32... Qxc2 {[%clk 0:00:50.1]} 33. Bxc2 {[%clk 0:01:37.4]}
33... c5 {[%clk 0:00:48.9]} 34. Bd3 {[%clk 0:01:30.6]} 34... a5 {[%clk
0:00:48.7]} 35. Bc4 {[%clk 0:01:30.5]} 35... Bf5 {[%clk 0:00:49.1]} 36. Rbd1
{[%clk 0:01:30]} 36... Bd4 {[%clk 0:00:48.1]} 37. Re7 {[%clk 0:01:29.1]} 37...
Kg7 {[%clk 0:00:47.8]} 38. g4 {[%clk 0:01:27.1]} 38... Bc2 {[%clk 0:00:40.1]}
39. Rde1 {[%clk 0:01:26.9]} 39... Bg6 {[%clk 0:00:39.6]} 40. Kg2 {[%clk
0:01:26.5]} 40... h5 {[%clk 0:00:38.7]} 41. f4 {[%clk 0:01:26.5]} 41... hxg4
{[%clk 0:00:38.9]} 42. hxg4 {[%clk 0:01:27.4]} 42... Bc3 {[%clk 0:00:33]} 43.
R1e2 {[%clk 0:01:22.1]} 43... Bb1 {[%clk 0:00:22.3]} 44. Rc7 {[%clk 0:01:06.1]}
44... Bd4 {[%clk 0:00:17.9]} 45. Ree7 {[%clk 0:01:04.6]} 45... Bg6 {[%clk
0:00:16.9]} 46. f5 {[%clk 0:01:04.9]} 1-0

[Event "Late-Titled-Tuesday-Blitz-June-18-2024"]
[Site "Chess.com"]
[Date "2024.06.18"]
[Round "6"]
[White "rionelG"]
[Black "GiorgianBarbosa"]
[Result "0-1"]
[WhiteElo "2344"]
[BlackElo "2504"]
[TimeControl "180+1"]
[EndTime "15:08:19 PDT"]
[Termination "GiorgianBarbosa won by resignation"]

1. e4 {[%clk 0:03:00.9]} 1... c5 {[%clk 0:02:59.3]} 2. g3 {[%clk 0:02:58.5]}
2... h5 {[%clk 0:02:55.8]} 3. h3 {[%clk 0:02:57.4]} 3... Nc6 {[%clk 0:02:55.4]}
4. Bg2 {[%clk 0:02:56.9]} 4... e5 {[%clk 0:02:49.3]} 5. Ne2 {[%clk 0:02:56.6]}
5... g6 {[%clk 0:02:45.4]} 6. c3 {[%clk 0:02:56]} 6... d6 {[%clk 0:02:44.4]} 7.
d4 {[%clk 0:02:56]} 7... cxd4 {[%clk 0:02:39.2]} 8. cxd4 {[%clk 0:02:55.8]} 8...
Bg7 {[%clk 0:02:40.1]} 9. Be3 {[%clk 0:02:55.4]} 9... Qb6 {[%clk 0:02:32.8]} 10.
d5 {[%clk 0:02:37.7]} 10... Qxb2 {[%clk 0:02:18.5]} 11. Nbc3 {[%clk 0:02:37.1]}
11... Nd4 {[%clk 0:02:17.7]} 12. O-O {[%clk 0:02:36.2]} 12... Nxe2+ {[%clk
0:02:09.4]} 13. Nxe2 {[%clk 0:02:35.5]} 13... Qa3 {[%clk 0:02:08.4]} 14. Rc1
{[%clk 0:02:24.1]} 14... Nf6 {[%clk 0:02:01]} 15. Nc3 {[%clk 0:02:01.7]} 15...
a6 {[%clk 0:01:51.5]} 16. f4 {[%clk 0:01:56.5]} 16... exf4 {[%clk 0:01:45.7]}
17. gxf4 {[%clk 0:01:55.7]} 17... O-O {[%clk 0:01:42.7]} 18. Bd4 {[%clk
0:01:53.2]} 18... Ne8 {[%clk 0:01:29.5]} 19. Bxg7 {[%clk 0:01:48.4]} 19... Nxg7
{[%clk 0:01:30.4]} 20. f5 {[%clk 0:01:43.5]} 20... gxf5 {[%clk 0:01:26.5]} 21.
exf5 {[%clk 0:01:42.8]} 21... Bxf5 {[%clk 0:01:26.1]} 22. Rxf5 {[%clk
0:00:50.5]} 22... Nxf5 {[%clk 0:01:21.1]} 23. Ne4 {[%clk 0:00:50.9]} 23... Qe3+
{[%clk 0:01:18.5]} 24. Kh1 {[%clk 0:00:45.8]} 24... Ng3+ {[%clk 0:01:15.5]} 25.
Nxg3 {[%clk 0:00:44.9]} 25... Qxg3 {[%clk 0:01:16.4]} 26. Qxh5 {[%clk
0:00:42.1]} 26... Rae8 {[%clk 0:01:12.5]} 27. Rg1 {[%clk 0:00:38.3]} 27... Re5
{[%clk 0:01:04.4]} 28. Qh6 {[%clk 0:00:13.2]} 28... Rg5 {[%clk 0:00:58.4]} 29.
h4 {[%clk 0:00:12.6]} 29... Rg4 {[%clk 0:00:55.2]} 30. Qh5 {[%clk 0:00:05.4]}
30... Rxh4+ {[%clk 0:00:54.2]} 31. Qxh4 {[%clk 0:00:05.8]} 31... Qxh4+ {[%clk
0:00:55.1]} 32. Bh3+ {[%clk 0:00:06.4]} 32... Kh8 {[%clk 0:00:54.9]} 33. Kg2
{[%clk 0:00:06.6]} 33... Rg8+ {[%clk 0:00:51.1]} 0-1